Workbook

Sheet Regular
A2: Measurement Date: 6/30/2015
A3: Membership Goup: Regular
H7: DEFERRED OUTFLOWS OF RESOURCES | M7: DEFERRED INFLOWS OF RESOURCES
H8: (Excluding Employer Specific Amounts) * | M8: (Excluding Employer Specific Amounts) *
A9: Employer ID # | B9: Employer Name | C9: 2021 Actual Employer Contributions | D9: Employer Allocation Percentage ** | E9: Net Pension Liability (NPL) | F9: Change in NPL due to 1% Decrease in the Actuarial Assumed Investment Return (6.00%) | G9: Change in NPL due to 1% Increase in the Actuarial Assumed Investment Return (8.00%) | H9: Differences Between Expected and Actual Experience | I9: Changes of Assumptions | J9: Difference Between Projected and Actual Investment Earnings on Pension Plan Investments | K9: Total Deferred Outflows of Resources | M9: Differences Between Expected and Actual Experience | N9: Difference Between Projected and Actual Investment Earnings on Pension Plan Investments | O9: Total Deferred Inflows of Resources | P9: Total Deferred Inflows of Resources | Q9: Total Proportionate Share of Allocable Plan Pension Expense
C10: =766168926.67+155.29+94.4 -> 766169176.4 | D10: 1 | E10: 140191093 | F10: 4961824676 | G10: -3900644140 | H10: 106665928 | I10: 91696956 | J10: 724277564 | K10: =SUM(H10:J10) -> 922640448 | M10: 107098862 | N10: 5803631840 | P10: =SUM(M10:O10) -> 5910730702 | Q10: -487417535
A11: 00109 | B11: REGIONAL ENVIRONMENTAL IMPROVEMENT COMM (REIC) | C11: 18891.66 | D11: =+C11/$C$10 -> 2.465729578e-05 | E11: =ROUND(D11*$E$10,0) -> 3457 | F11: =+ROUND(D11*$F$10,0) -> 122345 | G11: =+ROUND(D11*$G$10,0) -> -96179 | H11: =ROUND(D11*$H$10,0) -> 2630 | I11: =ROUND(D11*$I$10,0) -> 2261 | J11: =ROUND(D11*$J$10,0) -> 17859 | K11: =ROUND(SUM(H11:J11),0) -> 22750 | M11: =ROUND(D11*$M$10,0) -> 2641 | N11: =ROUND(D11*$N$10,0) -> 143102 | O11: =ROUND(SUM(L11:N11),0) -> 145743 | P11: =ROUND(SUM(M11:N11),0) -> 145743 | Q11: =ROUND(D11*$Q$10,0) -> -12018
A12: 00111 | B12: PAGE COUNTY SOIL & WATER CONSERVATION | C12: 5633.57 | D12: =+C12/$C$10 -> 7.352906086e-06 | E12: =ROUND(D12*$E$10,0) -> 1031 | F12: =+ROUND(D12*$F$10,0) -> 36484 | G12: =+ROUND(D12*$G$10,0) -> -28681 | H12: =ROUND(D12*$H$10,0) -> 784 | I12: =ROUND(D12*$I$10,0) -> 674 | J12: =ROUND(D12*$J$10,0) -> 5326 | K12: =ROUND(SUM(H12:J12),0) -> 6784 | M12: =ROUND(D12*$M$10,0) -> 787 | N12: =ROUND(D12*$N$10,0) -> 42674 | O12: =ROUND(SUM(L12:N12),0) -> 43461 | P12: =ROUND(SUM(M12:N12),0) -> 43461 | Q12: =ROUND(D12*$Q$10,0) -> -3584
A13: 00115 | B13: MID IOWA COMMUNITY ACTION INC (MICA) | C13: 346466.87 | D13: 0.0004522067458 | E13: 63395 | F13: 2243771 | G13: -1763898 | H13: 48235 | I13: 41466 | J13: 327523 | K13: 417224 | M13: 48431 | N13: 2624441 | O13: 2672872 | P13: 2672872 | Q13: -220413
A14: 00116 | B14: ADAIR CO SOIL & WATER CONSERVATION DIST | C14: 49.84 | D14: 6.505090721e-08 | E14: 9 | F14: 323 | G14: -254 | H14: 7 | I14: 6 | J14: 47 | K14: 60 | M14: 7 | N14: 378 | O14: 385 | P14: 385 | Q14: -32
A15: 00121 | B15: HARRISON COUNTY LANDFILL COMMISSION | C15: 23364 | D15: 3.049457055e-05 | E15: 4275 | F15: 151309 | G15: -118948 | H15: 3253 | I15: 2796 | J15: 22087 | K15: 28136 | M15: 3266 | N15: 176979 | O15: 180245 | P15: 180245 | Q15: -14864
A16: 00123 | B16: SCOTT COUNTY SOIL & WATER CONS. DIST. | C16: 3500.22 | D16: 4.568468829e-06 | E16: 640 | F16: 22668 | G16: -17820 | H16: 487 | I16: 419 | J16: 3309 | K16: 4215 | M16: 489 | N16: 26514 | O16: 27003 | P16: 27003 | Q16: -2227
A17: 00124 | B17: HAMPTON-DUMONT COMMUNITY SCHOOL DIST | C17: 959500.06 | D17: 0.001252334458 | E17: 175566 | F17: 6213864 | G17: -4884911 | H17: =ROUND(D17*$H$10,0)+1 -> 133582 | I17: =ROUND(D17*$I$10,0)+1 -> 114836 | J17: 907038 | K17: 1155456 | M17: 134124 | N17: 7268088 | O17: 7402212 | P17: 7402212 | Q17: -610410
A18: 00128 | B18: BUCHANAN CO ECONOMIC DEVELOPMENT COMM | C18: 5436.74 | D18: 7.0960046e-06 | E18: 995 | F18: 35209 | G18: -27679 | H18: 757 | I18: 651 | J18: 5139 | K18: 6547 | M18: 760 | N18: 41183 | O18: 41943 | P18: 41943 | Q18: -3459
A19: 00131 | B19: PARKERSBURG ECONOMIC DEVELOPMENT | C19: 1903.77 | D19: 2.484790643e-06 | E19: 348 | F19: 12329 | G19: -9692 | H19: 265 | I19: 228 | J19: 1800 | K19: 2293 | M19: 266 | N19: 14421 | O19: 14687 | P19: 14687 | Q19: -1211
A20: 00132 | B20: FREMONT COUNTY SOIL & WATER CONS DIST | C20: 1840.79 | D20: 2.402589476e-06 | E20: 337 | F20: 11921 | G20: -9372 | H20: 256 | I20: 220 | J20: 1740 | K20: 2216 | M20: 257 | N20: 13944 | O20: 14201 | P20: 14201 | Q20: -1171
A21: 00133 | B21: COMMUNITY HOUSING INITIATIVES INC. | C21: 166313.64 | D21: 0.0002170716927 | E21: 30432 | F21: 1077072 | G21: -846719 | H21: 23154 | I21: 19905 | J21: 157220 | K21: 200279 | M21: 23248 | N21: 1259804 | O21: 1283052 | P21: 1283052 | Q21: -105805
A22: 00137 | B22: CITY OF WESTWOOD | C22: 396.48 | D22: 5.174836214e-07 | E22: 73 | F22: 2568 | G22: -2019 | H22: 55 | I22: 47 | J22: 375 | K22: 477 | M22: 55 | N22: 3003 | O22: 3058 | P22: 3058 | Q22: -252
A23: 00140 | B23: SOUTHEAST IOWA REGIONAL AIRPORT AUTH | C23: 14768.48 | D23: 1.927574282e-05 | E23: 2702 | F23: 95643 | G23: -75188 | H23: 2056 | I23: 1768 | J23: 13961 | K23: 17785 | M23: 2064 | N23: 111869 | O23: 113933 | P23: 113933 | Q23: -9395
A24: 00141 | B24: AUDUBON COUNTY SOLID WASTE MANAGEMENT | C24: 11560.86 | D24: 1.508917398e-05 | E24: 2115 | F24: 74870 | G24: -58857 | H24: 1610 | I24: 1384 | J24: 10929 | K24: 13923 | M24: 1616 | N24: 87572 | O24: 89188 | P24: 89188 | Q24: -7355
A25: 00142 | B25: HARDIN COUNTY SOLID WASTE DISPOSAL COMM | C25: 28312.09 | D25: 3.695279172e-05 | E25: 5180 | F25: 183353 | G25: -144140 | H25: 3942 | I25: 3388 | J25: 26764 | K25: 34094 | M25: 3958 | N25: 214460 | O25: 218418 | P25: 218418 | Q25: -18011
A26: 00145 | B26: NEW OPPORTUNITIES, INC. | C26: 322631.99 | D26: 0.0004210975852 | E26: 59034 | F26: 2089412 | G26: -1642552 | H26: 44917 | I26: 38613 | J26: =ROUND(D26*$J$10,0)-1 -> 304991 | K26: 388521 | M26: 45099 | N26: 2443895 | O26: 2488994 | P26: 2488994 | Q26: -205250
A27: 00147 | B27: WHAT CHEER PUBLIC LIBRARY | C27: 955.66 | D27: 1.247322432e-06 | E27: 175 | F27: 6189 | G27: -4865 | H27: 133 | I27: 114 | J27: 903 | K27: 1150 | M27: 134 | N27: 7239 | O27: 7373 | P27: 7373 | Q27: -608
A28: 00148 | B28: AMANA COLONIES LAND USE DISTRICT | C28: 1661.4 | D28: 2.168450587e-06 | E28: 304 | F28: 10759 | G28: -8458 | H28: 231 | I28: 199 | J28: 1571 | K28: 2001 | M28: 232 | N28: 12585 | O28: 12817 | P28: 12817 | Q28: -1057
A29: 00149 | B29: STATE - DEPT OF CORRECTIONS/FT DODGE | C29: 174913.17 | D29: 0.0002282957542 | E29: 32005 | F29: 1132764 | G29: -890500 | H29: 24351 | I29: 20934 | J29: 165349 | K29: 210634 | M29: 24450 | N29: 1324945 | O29: 1349395 | P29: 1349395 | Q29: -111275
A30: 00150 | B30: CEDAR COUNTY ECONOMIC DEVELOPMENT COMM. | C30: 4531.2 | D30: 5.91409853e-06 | E30: 829 | F30: 29345 | G30: -23069 | H30: 631 | I30: 542 | J30: 4283 | K30: 5456 | M30: 633 | N30: 34323 | O30: 34956 | P30: 34956 | Q30: -2883
A31: 00173 | B31: CITY OF SAINT DONATUS | C31: 1370.41 | D31: 1.788651961e-06 | E31: 251 | F31: 8875 | G31: -6977 | H31: 191 | I31: 164 | J31: 1295 | K31: 1650 | M31: 192 | N31: 10381 | O31: 10573 | P31: 10573 | Q31: -872
A32: 00174 | B32: CALHOUN COUNTY ECONOMIC DEVELOPMENT CORP | C32: 4467.22 | D32: 5.830592169e-06 | E32: 817 | F32: 28930 | G32: -22743 | H32: 622 | I32: 535 | J32: 4223 | K32: 5380 | M32: 624 | N32: 33839 | O32: 34463 | P32: 34463 | Q32: -2842
A33: 00177 | B33: WGML REFUSE COMMISSION | C33: 113.28 | D33: 1.478524633e-07 | E33: 21 | F33: 734 | G33: -577 | H33: 16 | I33: 14 | J33: 107 | K33: 137 | M33: 16 | N33: 858 | O33: 874 | P33: 874 | Q33: -72
A34: 00182 | B34: IOWA COUNTY ENGINEERS ASSOCIATION | C34: 73913.52 | D34: 9.647153955e-05 | E34: 13524 | F34: 478675 | G34: -376301 | H34: 10290 | I34: 8846 | J34: 69872 | K34: 89008 | M34: 10332 | N34: 559885 | O34: 570217 | P34: 570217 | Q34: -47022
A35: 00189 | B35: GREENBELT HOME CARE | C35: 87386.37 | D35: 0.0001140562329 | E35: 15990 | F35: 565927 | G35: -444893 | H35: 12166 | I35: 10459 | J35: 82608 | K35: 105233 | M35: 12215 | N35: 661940 | O35: 674155 | P35: 674155 | Q35: -55593
A36: 00195 | B36: IMPACT COMMUNITY ACTION PARTNERSHIP, INC | C36: 173085.15 | D36: 0.0002259098321 | E36: 31671 | F36: 1120925 | G36: -881194 | H36: 24097 | I36: 20715 | J36: 163621 | K36: 208433 | M36: 24195 | N36: 1311097 | O36: 1335292 | P36: 1335292 | Q36: -110112
A37: 00196 | B37: SOUTHERN IOWA ECONOMIC DEV. ASSOC. | C37: 421136.74 | D37: 0.0005496654694 | E37: 77058 | F37: 2727344 | G37: -2144049 | H37: 58631 | I37: 50403 | J37: =ROUND(D37*$J$10,0)-1 -> 398109 | K37: 507143 | M37: 58869 | N37: 3190056 | O37: 3248925 | P37: 3248925 | Q37: -267917
A38: 00197 | B38: SOUTH CENTRAL IOWA COMMUNITY ACTION | C38: 175143.15 | D38: 0.0002285959229 | E38: 32047 | F38: 1134253 | G38: -891671 | H38: 24383 | I38: 20962 | J38: 165567 | K38: 210912 | M38: 24482 | N38: 1326687 | O38: 1351169 | P38: 1351169 | Q38: -111422
A39: 00198 | B39: OPERATION THRESHOLD INC. | C39: 192952.27 | D39: 0.0002518402932 | E39: 35306 | F39: 1249587 | G39: -982339 | H39: 26863 | I39: 23093 | J39: 182402 | K39: 232358 | M39: 26972 | N39: 1461588 | O39: 1488560 | P39: 1488560 | Q39: -122751
A40: 00199 | B40: WEST CENTRAL COMMUNITY ACTION | C40: 372678.78 | D40: 0.0004864183936 | E40: 68192 | F40: 2413523 | G40: -1897345 | H40: 51884 | I40: 44603 | J40: =ROUND(D40*$J$10,0)-1 -> 352301 | K40: 448788 | M40: 52095 | N40: 2822993 | O40: 2875088 | P40: 2875088 | Q40: -237089
A41: 00200 | B41: NORTH IOWA COMMUNITY ACTION ORGANIZATION | C41: 348719.47 | D41: 0.0004551468276 | E41: 63808 | F41: 2258359 | G41: -1775366 | H41: 48549 | I41: 41736 | J41: =ROUND(D41*$J$10,0)-1 -> 329652 | K41: 419937 | M41: 48746 | N41: 2641505 | O41: 2690251 | P41: 2690251 | Q41: -221847
A42: 00201 | B42: MID-SIOUX OPPORTUNITY INC. | C42: 285453.66 | D42: 0.0003725726234 | E42: 52231 | F42: 1848640 | G42: -1453273 | H42: 39741 | I42: 34164 | J42: 269846 | K42: 343751 | M42: 39902 | N42: 2162274 | O42: 2202176 | P42: 2202176 | Q42: -181598
A43: 00202 | B43: COMMUNITY ACTION OF SOUTHEAST IOWA | C43: 274120.79 | D43: 0.0003577810208 | E43: 50158 | F43: 1775247 | G43: -1395576 | H43: 38163 | I43: 32807 | J43: 259133 | K43: 330103 | M43: 38318 | N43: 2076429 | O43: 2114747 | P43: 2114747 | Q43: -174389
A44: 00203 | B44: MATURA ACTION CORPORATION | C44: 171376.26 | D44: 0.0002236793978 | E44: 31358 | F44: 1109858 | G44: -872494 | H44: 23859 | I44: 20511 | J44: 162006 | K44: 206376 | M44: 23956 | N44: 1298153 | O44: 1322109 | P44: 1322109 | Q44: -109025
A45: 00204 | B45: COMMUNITY ACTION AGENCY OF SIOUXLAND | C45: 435115.9 | D45: 0.0005679109959 | E45: 79616 | F45: 2817875 | G45: -2215219 | H45: 60577 | I45: 52076 | J45: 411325 | K45: 523978 | M45: 60823 | N45: 3295946 | O45: 3356769 | P45: 3356769 | Q45: -276810
A46: 00205 | B46: COMMUNITY ACTION OF EASTERN IOWA | C46: 315675.37 | D46: 0.0004120178412 | E46: 57761 | F46: 2044360 | G46: -1607135 | H46: 43948 | I46: 37781 | J46: 298415 | K46: 380144 | M46: 44127 | N46: 2391200 | O46: 2435327 | P46: 2435327 | Q46: -200825
A47: 00206 | B47: OPERATION NEW VIEW COMM. ACTION AGENCY | C47: 9618.63 | D47: 1.255418555e-05 | E47: 1760 | F47: 62292 | G47: -48969 | H47: 1339 | I47: 1151 | J47: 9093 | K47: 11583 | M47: 1345 | N47: 72860 | O47: 74205 | P47: 74205 | Q47: -6119
A48: 00208 | B48: HAWKEYE AREA COMMUNITY ACTION PROG. INC. | C48: 768076.44 | D48: 0.001002489351 | E48: 140540 | F48: 4974176 | G48: -3910354 | H48: =ROUND(D48*$H$10,0)+1 -> 106932 | I48: 91925 | J48: 726081 | K48: 924938 | M48: 107365 | N48: 5818079 | O48: 5925444 | P48: 5925444 | Q48: -488631
A49: 00210 | B49: CITY OF BALLTOWN | C49: 260.67 | D49: 3.4022512e-07 | E49: 48 | F49: 1688 | G49: -1327 | H49: 36 | I49: 31 | J49: 246 | K49: 313 | M49: 36 | N49: 1975 | O49: 2011 | P49: 2011 | Q49: -166
A50: 00213 | B50: CITY OF KINROSS | C50: 56.64 | D50: 7.392623163e-08 | E50: 10 | F50: 367 | G50: -288 | H50: 8 | I50: 7 | J50: 54 | K50: 69 | M50: 8 | N50: 429 | O50: 437 | P50: 437 | Q50: -36
A51: 00215 | B51: REGIONAL TRANSIT AUTHORITY INC | C51: 109128.41 | D51: 0.0001424338297 | E51: 19968 | F51: 706732 | G51: -555584 | H51: 15193 | I51: 13061 | J51: 103162 | K51: 131416 | M51: 15255 | N51: 826634 | O51: 841889 | P51: 841889 | Q51: -69425
A52: 00216 | B52: STATE - DEPT OF HUMAN SERVICES/CCUSO | C52: 270132.95 | D52: 0.0003525761129 | E52: 49428 | F52: 1749421 | G52: -1375274 | H52: 37608 | I52: 32330 | J52: 255363 | K52: 325301 | M52: 37761 | N52: 2046222 | O52: 2083983 | P52: 2083983 | Q52: -171852
A53: 00218 | B53: FREEPORT WATER AND SANITARY DISTRICT | C53: 2295.44 | D53: 2.995996277e-06 | E53: 420 | F53: 14866 | G53: -11686 | H53: 320 | I53: 275 | J53: 2170 | K53: 2765 | M53: 321 | N53: 17388 | O53: 17709 | P53: 17709 | Q53: -1460
A54: 00223 | B54: MONROE COUNTY SOIL AND WATER CONS. DIST. | C54: 5073.24 | D54: 6.621566302e-06 | E54: 928 | F54: 32855 | G54: -25828 | H54: 706 | I54: 607 | J54: 4796 | K54: 6109 | M54: 709 | N54: 38429 | O54: 39138 | P54: 39138 | Q54: -3227
A55: 00226 | B55: APPANOOSE COUNTY SOIL AND WATER DISTRICT | C55: 94.4 | D55: 1.232103861e-07 | E55: 17 | F55: 611 | G55: -481 | H55: 13 | I55: 11 | J55: 89 | K55: 113 | M55: 13 | N55: 715 | O55: 728 | P55: 728 | Q55: -60
A56: 00227 | B56: CEDAR COUNTY SOIL & WATER CONS DISTRICT | C56: 245.44 | D56: 3.203470037e-07 | E56: 45 | F56: 1590 | G56: -1250 | H56: 34 | I56: 29 | J56: 232 | K56: 295 | M56: 34 | N56: 1859 | O56: 1893 | P56: 1893 | Q56: -156
A57: 00234 | B57: THE COMMUNITY AGENCY | C57: 44776.24 | D57: 5.844171416e-05 | E57: 8193 | F57: 289978 | G57: -227960 | H57: 6234 | I57: 5359 | J57: 42328 | K57: 53921 | M57: 6259 | N57: 339174 | O57: 345433 | P57: 345433 | Q57: -28486
A58: 00240 | B58: MONTGOMERY SOIL & WATER CONS. DISTRICT | C58: 143.87 | D58: 1.877783712e-07 | E58: 26 | F58: 932 | G58: -732 | H58: 20 | I58: 17 | J58: 136 | K58: 173 | M58: 20 | N58: 1090 | O58: 1110 | P58: 1110 | Q58: -92
A59: 00241 | B59: INDEPENDENCE LIGHT & POWER TELECOMM | C59: 50268.91 | D59: 6.56107183e-05 | E59: 9198 | F59: 325549 | G59: -255924 | H59: 6998 | I59: 6016 | J59: 47520 | K59: 60534 | M59: 7027 | N59: 380780 | O59: 387807 | P59: 387807 | Q59: -31980
A60: 00242 | B60: NODAWAY VALLEY COMMUNITY SCHOOL DISTRICT | C60: 443686.74 | D60: 0.0005790976115 | E60: 81184 | F60: 2873381 | G60: -2258854 | H60: 61770 | I60: 53101 | J60: 419427 | K60: 534298 | M60: 62021 | N60: 3360869 | O60: 3422890 | P60: 3422890 | Q60: -282262
A61: 00245 | B61: CHARLES CITY AREA DEVELOPMENT CORP | C61: 13261.19 | D61: 1.73084358e-05 | E61: 2426 | F61: 85881 | G61: -67514 | H61: 1846 | I61: 1587 | J61: 12536 | K61: 15969 | M61: 1854 | N61: 100452 | O61: 102306 | P61: 102306 | Q61: -8436
A62: 00250 | B62: KOSSUTH COUNTY ECONOMIC DEVELOPMENT CORP | C62: 18739.57 | D62: 2.445878871e-05 | E62: 3429 | F62: 121360 | G62: -95405 | H62: 2609 | I62: 2243 | J62: 17715 | K62: 22567 | M62: 2620 | N62: 141950 | O62: 144570 | P62: 144570 | Q62: -11922
A63: 00256 | B63: LOUISA SOIL & WATER CONSERVATION DIST | C63: 1884.49 | D63: 2.459626487e-06 | E63: 345 | F63: 12204 | G63: -9594 | H63: 262 | I63: 226 | J63: 1781 | K63: 2269 | M63: 263 | N63: 14275 | O63: 14538 | P63: 14538 | Q63: -1199
A64: 00270 | B64: LUCAS COUNTY SOIL & WATER CONS DISTRICT | C64: 6220.71 | D64: 8.119238142e-06 | E64: 1138 | F64: 40286 | G64: -31670 | H64: 866 | I64: 745 | J64: 5881 | K64: 7492 | M64: 870 | N64: 47121 | O64: 47991 | P64: 47991 | Q64: -3957
A65: 00278 | B65: AGWSR COMMUNITY SCHOOL DISTRICT | C65: 515356.5 | D65: 0.0006726406072 | E65: 94298 | F65: 3337525 | G65: -2623732 | H65: 71748 | I65: 61679 | J65: 487179 | K65: 620606 | M65: 72039 | N65: 3903758 | O65: 3975797 | P65: 3975797 | Q65: -327857
A66: 00279 | B66: WEST CENTRAL VALLEY COMMUNITY SCHOOL | C66: 560407.63 | D66: 0.0007314411063 | E66: 102542 | F66: 3629283 | G66: -2853091 | H66: 78020 | I66: 67071 | J66: 529766 | K66: 674857 | M66: 78337 | N66: 4245015 | O66: 4323352 | P66: 4323352 | Q66: -356517
A67: 00283 | B67: HENRY COUNTY SOIL & WATER CONS DIST | C67: 4741.62 | D67: 6.188737613e-06 | E67: 868 | F67: 30707 | G67: -24140 | H67: 660 | I67: 567 | J67: 4482 | K67: 5709 | M67: 663 | N67: 35917 | O67: 36580 | P67: 36580 | Q67: -3016
A68: 00287 | B68: MADISON COUNTY SOIL & WATER | C68: 7059.82 | D68: 9.214440123e-06 | E68: 1292 | F68: 45720 | G68: -35942 | H68: 983 | I68: 845 | J68: 6674 | K68: 8502 | M68: 987 | N68: 53477 | O68: 54464 | P68: 54464 | Q68: -4491
A69: 00288 | B69: CLARKE COUNTY SOIL & WATER | C69: 3502.78 | D69: 4.571810128e-06 | E69: 641 | F69: 22685 | G69: -17833 | H69: 488 | I69: 419 | J69: 3311 | K69: 4218 | M69: 490 | N69: 26533 | O69: 27023 | P69: 27023 | Q69: -2228
A70: 00290 | B70: OSAGE MUNICIPAL COMMUNICATIONS UTILITY | C70: 28412.18 | D70: 3.708342867e-05 | E70: 5199 | F70: 184001 | G70: -144649 | H70: 3956 | I70: 3400 | J70: 26859 | K70: 34215 | M70: 3972 | N70: 215219 | O70: 219191 | P70: 219191 | Q70: -18075
A71: 00291 | B71: BALDWIN-MONMOUTH WASTEWATER TREATMENT AG | C71: 543.68 | D71: 7.096082912e-07 | E71: 99 | F71: 3521 | G71: -2768 | H71: 76 | I71: 65 | J71: 514 | K71: 655 | M71: 76 | N71: 4118 | O71: 4194 | P71: 4194 | Q71: -346
A72: 00293 | B72: COUNCIL BLUFFS AIRPORT AUTHORITY | C72: 20034.57 | D72: 2.614901593e-05 | E72: 3666 | F72: 129747 | G72: -101998 | H72: 2789 | I72: 2398 | J72: 18939 | K72: 24126 | M72: 2801 | N72: 151759 | O72: 154560 | P72: 154560 | Q72: -12745
A73: 00294 | B73: COMMUNITY & FAMILY RESOURCES | C73: 377506.26 | D73: 0.0004927191952 | E73: 69075 | F73: 2444786 | G73: -1921922 | H73: 52556 | I73: 45181 | J73: 356865 | K73: 454602 | M73: 52770 | N73: 2859561 | O73: 2912331 | P73: 2912331 | Q73: -240160
A74: 00296 | B74: E POTTAWATTAMIE SOIL & WATER CONS DIST | C74: 1903.1 | D74: 2.483916162e-06 | E74: 348 | F74: 12325 | G74: -9689 | H74: 265 | I74: 228 | J74: 1799 | K74: 2292 | M74: 266 | N74: 14416 | O74: 14682 | P74: 14682 | Q74: -1211
A75: 00300 | B75: CITY OF MAHARISHI VEDIC CITY | C75: 7622.8 | D75: 9.949238674e-06 | E75: 1395 | F75: 49366 | G75: -38808 | H75: 1061 | I75: 912 | J75: 7206 | K75: 9179 | M75: 1066 | N75: 57742 | O75: 58808 | P75: 58808 | Q75: -4849
A76: 00301 | B76: CITY OF SAGEVILLE | C76: 1548.2 | D76: =+C76/$C$10 -> 2.020702539e-06 | E76: =ROUND(D76*$E$10,0) -> 283 | F76: =+ROUND(D76*$F$10,0) -> 10026 | G76: =+ROUND(D76*$G$10,0) -> -7882 | H76: =ROUND(D76*$H$10,0) -> 216 | I76: =ROUND(D76*$I$10,0) -> 185 | J76: =ROUND(D76*$J$10,0) -> 1464 | K76: =ROUND(SUM(H76:J76),0) -> 1865 | M76: =ROUND(D76*$M$10,0) -> 216 | N76: =ROUND(D76*$N$10,0) -> 11727 | O76: =ROUND(SUM(L76:N76),0) -> 11943 | P76: =ROUND(SUM(M76:N76),0) -> 11943 | Q76: =ROUND(D76*$Q$10,0) -> -985
A77: 00303 | B77: CITY OF UDELL | C77: 94.4 | D77: 1.232103861e-07 | E77: 17 | F77: 611 | G77: -481 | H77: 13 | I77: 11 | J77: 89 | K77: 113 | M77: 13 | N77: 715 | O77: 728 | P77: 728 | Q77: -60
A78: 00304 | B78: CITY OF TURIN | C78: 126.06 | D78: 1.645328524e-07 | E78: 23 | F78: 816 | G78: -642 | H78: 18 | I78: 15 | J78: 119 | K78: 152 | M78: 18 | N78: 955 | O78: 973 | P78: 973 | Q78: -80
A79: 00306 | B79: CITY OF GIBSON | C79: 169.92 | D79: 2.217786949e-07 | E79: 31 | F79: 1100 | G79: -865 | H79: 24 | I79: 20 | J79: 161 | K79: 205 | M79: 24 | N79: 1287 | O79: 1311 | P79: 1311 | Q79: -108
A80: 00307 | B80: CITY OF OAKLAND ACRES | C80: 396.48 | D80: 5.174836214e-07 | E80: 73 | F80: 2568 | G80: -2019 | H80: 55 | I80: 47 | J80: 375 | K80: 477 | M80: 55 | N80: 3003 | O80: 3058 | P80: 3058 | Q80: -252
A81: 00308 | B81: CITY OF GILLETT GROVE | C81: 403.56 | D81: 5.267244004e-07 | E81: 74 | F81: 2614 | G81: -2055 | H81: 56 | I81: 48 | J81: 381 | K81: 485 | M81: 56 | N81: 3057 | O81: 3113 | P81: 3113 | Q81: -257
A82: 00309 | B82: IOWA NORTHLAND REGIONAL HOUSING | C82: 6562.63 | D82: 8.565510337e-06 | E82: 1201 | F82: 42501 | G82: -33411 | H82: 914 | I82: 785 | J82: 6204 | K82: 7903 | M82: 917 | N82: 49711 | O82: 50628 | P82: 50628 | Q82: -4175
A83: 00314 | B83: LYTTON LIBRARY | C83: 984.6 | D83: 1.285094768e-06 | E83: 180 | F83: 6376 | G83: -5013 | H83: 137 | I83: 118 | J83: 931 | K83: 1186 | M83: 138 | N83: 7458 | O83: 7596 | P83: 7596 | Q83: -626
A84: 00316 | B84: CROSSROADS MENTAL HEALTH CENTER | C84: 132663.79 | D84: 0.0001731520845 | E84: 24274 | F84: 859150 | G84: -675405 | H84: 18469 | I84: 15878 | J84: 125410 | K84: 159757 | M84: 18544 | N84: 1004911 | O84: 1023455 | P84: 1023455 | Q84: -84397
A85: 00317 | B85: KIDS WORLD INC | C85: 22590.58 | D85: 2.948510681e-05 | E85: 4134 | F85: 146300 | G85: -115011 | H85: 3145 | I85: 2704 | J85: 21355 | K85: 27204 | M85: 3158 | N85: 171121 | O85: 174279 | P85: 174279 | Q85: -14372
A86: 00319 | B86: STATE - DEPARTMENT OF REVENUE | C86: 1906265.6 | D86: 0.002488047887 | E86: 348802 | F86: 12345257 | G86: -9704989 | H86: =ROUND(D86*$H$10,0)+1 -> 265391 | I86: =ROUND(D86*$I$10,0)+1 -> 228147 | J86: 1802037 | K86: 2295575 | M86: 266467 | N86: 14439714 | O86: 14706181 | P86: 14706181 | Q86: -1212718
A87: 00320 | B87: ZION RECOVERY SERVICES INC | C87: 262412.17 | D87: 0.0003424989912 | E87: 48015 | F87: 1699420 | G87: -1335967 | H87: 36533 | I87: 31406 | J87: 248064 | K87: 316003 | M87: 36681 | N87: 1987738 | O87: 2024419 | P87: 2024419 | Q87: -166940
A88: 00321 | B88: GEORGE-LITTLE ROCK COMMUNITY SCHOOL | C88: 275239.35 | D88: 0.0003592409594 | E88: 50362 | F88: 1782491 | G88: -1401271 | H88: 38319 | I88: 32941 | J88: 260190 | K88: 331450 | M88: 38474 | N88: 2084902 | O88: 2123376 | P88: 2123376 | Q88: -175100
A89: 00322 | B89: BOARD OF PROFESSIONAL ETHICS AND CONDUCT | C89: 85766.6 | D89: 0.0001119421175 | E89: 15693 | F89: 555437 | G89: -436646 | H89: 11940 | I89: 10265 | J89: 81077 | K89: 103282 | M89: 11989 | N89: 649671 | O89: 661660 | P89: 661660 | Q89: -54563
A90: 00324 | B90: MONONA COUNTY SANITARY LANDFILL | C90: 14888.36 | D90: 1.943220957e-05 | E90: 2724 | F90: 96419 | G90: -75798 | H90: 2073 | I90: 1782 | J90: 14074 | K90: 17929 | M90: 2081 | N90: 112777 | O90: 114858 | P90: 114858 | Q90: -9472
A91: 00325 | B91: APLINGTON-PARKERSBURG COMM SCHOOL DIST | C91: 563877.15 | D91: 0.0007359695057 | E91: 103176 | F91: 3651752 | G91: -2870755 | H91: 78503 | I91: 67486 | J91: 533046 | K91: 679035 | M91: 78821 | N91: 4271296 | O91: 4350117 | P91: 4350117 | Q91: -358724
A92: 00326 | B92: MUSCATINE CO JOINT COMMUNICATIONS COMM | C92: 65106.98 | D92: 8.497728962e-05 | E92: 11913 | F92: 421642 | G92: -331466 | H92: 9064 | I92: 7792 | J92: 61547 | K92: 78403 | M92: 9101 | N92: 493177 | O92: 502278 | P92: 502278 | Q92: -41419
A93: 00327 | B93: HAMILTON SOIL AND WATER CONS DIST | C93: 243.08 | D93: 3.172667441e-07 | E93: 44 | F93: 1574 | G93: -1238 | H93: 34 | I93: 29 | J93: 230 | K93: 293 | M93: 34 | N93: 1841 | O93: 1875 | P93: 1875 | Q93: -155
A94: 00329 | B94: MARION CO FAIR ASSOC | C94: 25576 | D94: 3.338166137e-05 | E94: 4680 | F94: 165634 | G94: -130210 | H94: 3561 | I94: 3061 | J94: 24178 | K94: 30800 | M94: 3575 | N94: 193735 | O94: 197310 | P94: 197310 | Q94: -16271
A95: 00330 | B95: SOUTHEAST WEBSTER-GRAND COMMUNITY SCHOOL | C95: 350071.57 | D95: 0.0004569115814 | E95: 64055 | F95: 2267115 | G95: -1782249 | H95: 48737 | I95: 41897 | J95: 330931 | K95: 421565 | M95: 48935 | N95: 2651747 | O95: 2700682 | P95: 2700682 | Q95: -222707
A96: 00331 | B96: BATTLE CREEK COMMUNITY AMBULANCE | C96: 1192.7 | D96: 1.556705799e-06 | E96: 218 | F96: 7724 | G96: -6072 | H96: 166 | I96: 143 | J96: 1127 | K96: 1436 | M96: 167 | N96: 9035 | O96: 9202 | P96: 9202 | Q96: -759
A97: 00332 | B97: CLARINDA ECONOMIC DEVELOPMENT CORP | C97: 5425.5 | D97: 7.081334211e-06 | E97: 993 | F97: 35136 | G97: -27622 | H97: 755 | I97: 649 | J97: 5129 | K97: 6533 | M97: 758 | N97: 41097 | O97: 41855 | P97: 41855 | Q97: -3452
A98: 00334 | B98: ROCK RAPIDS MUNICIPAL UTILITY | C98: 64516.27 | D98: 8.420629802e-05 | E98: 11805 | F98: 417817 | G98: -328459 | H98: 8982 | I98: 7721 | J98: 60989 | K98: 77692 | M98: 9018 | N98: 488702 | O98: 497720 | P98: 497720 | Q98: -41044
A99: 00335 | B99: CRAWFORD COUNTY SWCD | C99: 36.82 | D99: 4.805727134e-08 | E99: 7 | F99: 238 | G99: -187 | H99: 5 | I99: 4 | J99: 35 | K99: 44 | M99: 5 | N99: 279 | O99: 284 | P99: 284 | Q99: -23
A100: 00336 | B100: ADLM CO ENVIRONMENTAL PUBLIC HEALTH | C100: 17185.81 | D100: 2.243082929e-05 | E100: 3145 | F100: 111298 | G100: -87495 | H100: 2393 | I100: 2057 | J100: 16246 | K100: 20696 | M100: 2402 | N100: 130180 | O100: 132582 | P100: 132582 | Q100: -10933
A101: 00338 | B101: CLAYTON RIDGE COMM SCH DIST | C101: 384273.51 | D101: 0.0005015517745 | E101: 70313 | F101: 2488612 | G101: -1956375 | H101: 53498 | I101: 45991 | J101: 363263 | K101: 462752 | M101: 53716 | N101: 2910822 | O101: 2964538 | P101: 2964538 | Q101: -244465
A102: 00339 | B102: SIOUXLAND HUMAN INVEST PARTNERSHIP(SHIP) | C102: 248936.78 | D102: 0.0003249109827 | E102: 45550 | F102: 1612151 | G102: -1267362 | H102: 34657 | I102: 29793 | J102: 235326 | K102: 299776 | M102: 34798 | N102: 1885664 | O102: 1920462 | P102: 1920462 | Q102: -158367
A103: 00340 | B103: UNITED COMMUNITY HEALTH CENTER, INC | C103: 206282.73 | D103: 0.0002692391398 | E103: 37745 | F103: 1335917 | G103: -1050206 | H103: 28719 | I103: 24688 | J103: 195004 | K103: 248411 | M103: 28835 | N103: 1562565 | O103: 1591400 | P103: 1591400 | Q103: -131232
A104: 00341 | B104: MITCHELL CO ECON DEV COMMISSION | C104: 5390.66 | D104: 7.035861225e-06 | E104: 986 | F104: 34911 | G104: -27444 | H104: 750 | I104: 645 | J104: 5096 | K104: 6491 | M104: 754 | N104: 40834 | O104: 41588 | P104: 41588 | Q104: -3429
A105: 00342 | B105: O'BRIEN COUNTY ECONOMIC DEVELPMENT CORP. | C105: 9249.14 | D105: 1.207192913e-05 | E105: 1692 | F105: 59899 | G105: -47088 | H105: 1288 | I105: 1107 | J105: 8743 | K105: 11138 | M105: 1293 | N105: 70061 | O105: 71354 | P105: 71354 | Q105: -5884
A106: 00343 | B106: UNION CO SOIL & WATER CONS DISTRICT | C106: 2330.17 | D106: 3.041325691e-06 | E106: 426 | F106: 15091 | G106: -11863 | H106: 324 | I106: 279 | J106: 2203 | K106: 2806 | M106: 326 | N106: 17651 | O106: 17977 | P106: 17977 | Q106: -1482
A107: 00344 | B107: SOUTHERN IOWA RC&D AREA | C107: 9116.01 | D107: 1.189816855e-05 | E107: 1668 | F107: 59037 | G107: -46411 | H107: 1269 | I107: 1091 | J107: 8618 | K107: 10978 | M107: 1274 | N107: 69053 | O107: 70327 | P107: 70327 | Q107: -5799
A108: 00345 | B108: MASON CITY HOUSING AUTHORITY | C108: 21794.78 | D108: 2.844643281e-05 | E108: 3988 | F108: 141146 | G108: -110959 | H108: 3034 | I108: 2608 | J108: 20603 | K108: 26245 | M108: 3047 | N108: 165093 | O108: 168140 | P108: 168140 | Q108: -13865
A109: 00350 | B109: LINKING FAMILIES AND COMMUNITIES | C109: 6453.73 | D109: 8.423374627e-06 | E109: 1181 | F109: 41795 | G109: -32857 | H109: 898 | I109: 772 | J109: 6101 | K109: 7771 | M109: 902 | N109: 48886 | O109: 49788 | P109: 49788 | Q109: -4106
A110: 00352 | B110: CHARITON VALLEY PLANNING & DEVELOPMENT | C110: 14018.08 | D110: 1.829632467e-05 | E110: 2565 | F110: 90783 | G110: -71367 | H110: 1952 | I110: 1678 | J110: 13252 | K110: 16882 | M110: 1960 | N110: 106185 | O110: 108145 | P110: 108145 | Q110: -8918
A111: 00354 | B111: GREAT PRAIRIE AREA EDUCATION AGENCY | C111: 1588573.32 | D111: 0.002073397585 | E111: =ROUND(D111*$E$10,0)+1 -> 290673 | F111: 10287835 | G111: -8087586 | H111: =ROUND(D111*$H$10,0)+1 -> 221162 | I111: 190124 | J111: 1501715 | K111: 1913001 | M111: 222059 | N111: 12033236 | O111: 12255295 | P111: 12255295 | Q111: -1010610
A112: 00357 | B112: STATE - DEPT OF CORRECTIONS/PRISON INDUSTRIES | C112: 194771.81 | D112: 0.0002542151473 | E112: 35639 | F112: 1261371 | G112: -991603 | H112: 27116 | I112: 23311 | J112: 184122 | K112: 234549 | M112: 27226 | N112: 1475371 | O112: 1502597 | P112: 1502597 | Q112: -123909
A113: 00358 | B113: HUDSON MUNICIPAL ELECTRIC UTILITIES | C113: 14580.11 | D113: 1.902988328e-05 | E113: 2668 | F113: 94423 | G113: -74229 | H113: 2030 | I113: 1745 | J113: 13783 | K113: 17558 | M113: 2038 | N113: 110442 | O113: 112480 | P113: 112480 | Q113: -9275
A114: 00359 | B114: STATE - IOWA DEPT OF VETERAN AFFAIRS | C114: 79679.06 | D114: 0.0001039966922 | E114: 14579 | F114: 516013 | G114: -405654 | H114: 11093 | I114: 9536 | J114: 75322 | K114: 95951 | M114: 11138 | N114: 603559 | O114: 614697 | P114: 614697 | Q114: -50690
A115: 00361 | B115: GRAETTINGER-TERRIL CSD | C115: 299060.27 | D115: 0.0003903318996 | E115: 54721 | F115: 1936758 | G115: -1522546 | H115: 41635 | I115: 35792 | J115: 282709 | K115: 360136 | M115: 41804 | N115: 2265343 | O115: 2307147 | P115: 2307147 | Q115: -190255
A116: 00363 | B116: JOINT EMERGENCY COMMUNICATIONS SERVICES ASSOC. | C116: 175664.77 | D116: 0.0002292767386 | E116: 32143 | F116: 1137631 | G116: -894327 | H116: 24456 | I116: 21024 | J116: 166060 | K116: 211540 | M116: 24555 | N116: 1330638 | O116: 1355193 | P116: 1355193 | Q116: -111754
A117: 00365 | B117: GREEN HILLS AEA | C117: 1814212.98 | D117: 0.002367901289 | E117: =ROUND(D117*$E$10,0)+1 -> 331960 | F117: 11749111 | G117: -9236340 | H117: 252574 | I117: =ROUND(D117*$I$10,0)+1 -> 217130 | J117: 1715018 | K117: 2184722 | M117: 253600 | N117: 13742427 | O117: 13996027 | P117: 13996027 | Q117: -1154157
A118: 00366 | B118: ST. CHARLES TOWNSHIP/SUNNYSIDE MEMORY GARDENS | C118: 3593.09 | D118: 4.689682267e-06 | E118: 657 | F118: 23269 | G118: -18293 | H118: 500 | I118: 430 | J118: 3397 | K118: 4327 | M118: 502 | N118: 27217 | O118: 27719 | P118: 27719 | Q118: -2286
A119: 00367 | B119: WEST FORK COMMUNITY SCHOOL DISTRICT | C119: 469160.31 | D119: 0.0006123455817 | E119: 85845 | F119: 3038351 | G119: -2388542 | H119: 65316 | I119: 56150 | J119: 443508 | K119: 564974 | M119: 65582 | N119: 3553828 | O119: 3619410 | P119: 3619410 | Q119: -298468
A120: 00368 | B120: EAST SAC COUNTY COMMUNITY SCHOOL DISTRICT | C120: 548390.48 | D120: 0.000715756385 | E120: 100343 | F120: 3551458 | G120: -2791911 | H120: 76347 | I120: 65633 | J120: 518406 | K120: 660386 | M120: 76657 | N120: 4153987 | O120: 4230644 | P120: 4230644 | Q120: -348872
A121: 00369 | B121: IKM-MANNING COMMUNITY SCHOOL DISTRICT | C121: 481843.93 | D121: 0.0006289001762 | E121: 88166 | F121: 3120492 | G121: -2453116 | H121: 67082 | I121: 57668 | J121: 455498 | K121: 580248 | M121: 67354 | N121: 3649905 | O121: 3717259 | P121: 3717259 | Q121: -306537
A122: 00370 | B122: NORTH BUTLER COMMUNITY SCHOOL DISTRICT | C122: 422099.11 | D122: 0.0005509215497 | E122: 77234 | F122: 2733576 | G122: -2148949 | H122: 58765 | I122: 50518 | J122: 399020 | K122: 508303 | M122: 59003 | N122: 3197346 | O122: 3256349 | P122: 3256349 | Q122: -268529
A123: 00371 | B123: CAM COMMUNITY SCHOOL DISTRICT | C123: 352310.26 | D123: 0.0004598335079 | E123: 64465 | F123: 2281613 | G123: -1793647 | H123: 49049 | I123: 42165 | J123: 333047 | K123: 424261 | M123: 49248 | N123: 2668704 | O123: 2717952 | P123: 2717952 | Q123: -224131
A124: 00373 | B124: EAST MILLS COMMUNITY SCHOOL DISTRICT | C124: 320355.12 | D124: 0.0004181258264 | E124: 58618 | F124: 2074667 | G124: -1630960 | H124: 44600 | I124: 38341 | J124: 302839 | K124: 385780 | M124: 44781 | N124: 2426648 | O124: 2471429 | P124: 2471429 | Q124: -203802
A125: 00374 | B125: CENTRAL SPRINGS COMMUNITY SCHOOL DISTRICT | C125: 517170.71 | D125: 0.0006750085046 | E125: 94630 | F125: 3349274 | G125: -2632968 | H125: 72000 | I125: 61896 | J125: 488894 | K125: 622790 | M125: 72293 | N125: 3917501 | O125: 3989794 | P125: 3989794 | Q125: -329011
A126: 00377 | B126: DES MOINES AIRPORT AUTHORITY | C126: 413337.64 | D126: 0.0005394861249 | E126: 75631 | F126: 2676836 | G126: -2104343 | H126: 57545 | I126: 49469 | J126: 390738 | K126: 497752 | M126: 57778 | N126: 3130979 | O126: 3188757 | P126: 3188757 | Q126: -262955
A127: 00380 | B127: IOWA ASSOC OF AREA EDUCATION AGENCIES | C127: 43724.29 | D127: 5.706871452e-05 | E127: 8001 | F127: 283165 | G127: -222605 | H127: 6087 | I127: 5233 | J127: 41334 | K127: 52654 | M127: 6112 | N127: 331206 | O127: 337318 | P127: 337318 | Q127: -27816
A128: 00381 | B128: EDDYVILLE-BLAKESBURG-FREMONT COMM SCH DIST | C128: 683117.46 | D128: 0.0008916013344 | E128: 124995 | F128: 4423970 | G128: -3477820 | H128: 95103 | I128: 81757 | J128: 645767 | K128: 822627 | M128: 95489 | N128: 5174526 | O128: 5270015 | P128: 5270015 | Q128: -434582
A129: 00382 | B129: MAPLE VALLEY - ANTHON OTO COMM SCHOOL DIST | C129: 484125.95 | D129: 0.0006318786567 | E129: 88584 | F129: 3135271 | G129: -2464734 | H129: 67400 | I129: 57941 | J129: 457656 | K129: 582997 | M129: 67673 | N129: 3667191 | O129: 3734864 | P129: 3734864 | Q129: -307989
A130: 00383 | B130: SOUTHERN IOWA TROLLEY | C130: 76614.27 | D130: 9.999654432e-05 | E130: 14019 | F130: 496165 | G130: -390051 | H130: 10666 | I130: 9169 | J130: 72425 | K130: 92260 | M130: 10710 | N130: 580343 | O130: 591053 | P130: 591053 | Q130: -48740
A131: 00386 | B131: IOWA PUBLIC POWER AGENCY | C131: 1359.36 | D131: 1.774229559e-06 | E131: 249 | F131: 8803 | G131: -6921 | H131: 189 | I131: 163 | J131: 1285 | K131: 1637 | M131: 190 | N131: 10297 | O131: 10487 | P131: 10487 | Q131: -865
A132: 00388 | B132: OSCEOLA WATER WORKS | C132: 39941.32 | D132: 5.213120187e-05 | E132: 7308 | F132: 258666 | G132: -203345 | H132: 5561 | I132: 4780 | J132: 37757 | K132: 48098 | M132: 5583 | N132: 302550 | O132: 308133 | P132: 308133 | Q132: -25410
A133: 00389 | B133: STATE - HOMELAND SEC & EMERG MNGMNT | C133: 496423.12 | D133: 0.0006479288587 | E133: 90834 | F133: 3214909 | G133: -2527340 | H133: 69112 | I133: 59413 | J133: 469280 | K133: 597805 | M133: 69392 | N133: 3760341 | O133: 3829733 | P133: 3829733 | Q133: -315812
A134: 00390 | B134: STATE - IOWA PUBLIC INFORMATION BOARD | C134: 19770.85 | D134: 2.580480997e-05 | E134: 3618 | F134: 128039 | G134: -100655 | H134: 2752 | I134: 2366 | J134: 18690 | K134: 23808 | M134: 2764 | N134: 149762 | O134: 152526 | P134: 152526 | Q134: -12578
A135: 00391 | B135: NORTHEAST IOWA AREA AGENCY ON AGING | C135: 247236.66 | D135: 0.000322691995 | E135: 45239 | F135: 1601141 | G135: -1258707 | H135: 34420 | I135: 29590 | J135: 233719 | K135: 297729 | M135: 34560 | N135: 1872786 | O135: 1907346 | P135: 1907346 | Q135: -157286
A136: 00392 | B136: MILESTONES AREA AGENCY ON AGING | C136: 208020.73 | D136: 0.0002715075683 | E136: 38063 | F136: 1347173 | G136: -1059054 | H136: 28961 | I136: 24896 | J136: 196647 | K136: 250504 | M136: 29078 | N136: 1575730 | O136: 1604808 | P136: 1604808 | Q136: -132338
A137: 00393 | B137: THE HERITAGE AREA AGENCY ON AGING | C137: 88129.82 | D137: 0.0001150265799 | E137: 16126 | F137: 570742 | G137: -448678 | H137: 12269 | I137: 10548 | J137: 83311 | K137: 106128 | M137: 12319 | N137: 667572 | O137: 679891 | P137: 679891 | Q137: -56066
A138: 00394 | B138: AGING RESOURCES OF CENTRAL IOWA | C138: 83792.25 | D138: 0.0001093652063 | E138: 15332 | F138: 542651 | G138: -426595 | H138: 11666 | I138: 10028 | J138: 79211 | K138: 100905 | M138: 11713 | N138: 634715 | O138: 646428 | P138: 646428 | Q138: -53307
A139: 00395 | B139: CONNECTIONS AREA AGENCY ON AGING | C139: 172713.75 | D139: 0.0002254250828 | E139: 31603 | F139: 1118520 | G139: -879303 | H139: 24045 | I139: 20671 | J139: 163270 | K139: 207986 | M139: 24143 | N139: 1308284 | O139: 1332427 | P139: 1332427 | Q139: -109876
A140: 00396 | B140: EASTON VALLEY COMM SCHOOL DIST | C140: 339359.55 | D140: =+C140/$C$10 -> 0.000442930309 | E140: =ROUND(D140*$E$10,0) -> 62095 | F140: =+ROUND(D140*$F$10,0) -> 2197743 | G140: =+ROUND(D140*$G$10,0) -> -1727714 | H140: =ROUND(D140*$H$10,0) -> 47246 | I140: =ROUND(D140*$I$10,0) -> 40615 | J140: =ROUND(D140*$J$10,0) -> 320804 | K140: =ROUND(SUM(H140:J140),0) -> 408665 | M140: =ROUND(D140*$M$10,0) -> 47437 | N140: =ROUND(D140*$N$10,0) -> 2570604 | O140: =ROUND(SUM(L140:N140),0) -> 2618041 | P140: =ROUND(SUM(M140:N140),0) -> 2618041 | Q140: =ROUND(D140*$Q$10,0) -> -215892
A141: 00397 | B141: CITY OF URBANDALE WATER UTILITY | C141: 135440.31 | D141: 0.0001767759839 | E141: 24782 | F141: 877131 | G141: -689540 | H141: 18856 | I141: 16210 | J141: 128035 | K141: 163101 | M141: 18933 | N141: 1025943 | O141: 1044876 | P141: 1044876 | Q141: -86164
A142: 00398 | B142: SOUTHWEST IOWA JUVENILE DETENTION CENTER | C142: 89716.32 | D142: 0.0001170972714 | E142: 16416 | F142: 581016 | G142: -456755 | H142: 12490 | I142: 10737 | J142: 84811 | K142: 108038 | M142: 12541 | N142: 679589 | O142: 692130 | P142: 692130 | Q142: -57075
A143: 00399 | B143: 10-15 REGIONAL TRANSIT AGENCY | C143: 256812.56 | D143: 0.0003351904095 | E143: 46991 | F143: 1663156 | G143: -1307459 | H143: 35753 | I143: 30736 | J143: 242771 | K143: 309260 | M143: 35899 | N143: 1945322 | O143: 1981221 | P143: 1981221 | Q143: -163378
A144: 00400 | B144: TWO RIVERS LEVEE & DRAINAGE DIST | C144: 24065.88 | D144: 3.141066065e-05 | E144: 4403 | F144: 155854 | G144: -122522 | H144: 3350 | I144: 2880 | J144: 22750 | K144: 28980 | M144: 3364 | N144: 182296 | O144: 185660 | P144: 185660 | Q144: -15310
A145: 00402 | B145: GREENE COUNTY COMMUNITY SCHOOL DIST | C145: 896004.75 | D145: 0.001169460711 | E145: 163948 | F145: 5802659 | G145: -4561650 | H145: 124742 | I145: 107236 | J145: 847014 | K145: 1078992 | M145: 125248 | N145: 6787119 | O145: 6912367 | P145: 6912367 | Q145: -570016
A146: 00403 | B146: CLARION-GOLDFIELD-DOWS COMMUNITY SCHOOL DIST | C146: 706538.11 | D146: 0.0009221698442 | E146: 129280 | F146: 4575645 | G146: -3597056 | H146: 98364 | I146: 84560 | J146: 667907 | K146: 850831 | M146: 98763 | N146: 5351934 | O146: 5450697 | P146: 5450697 | Q146: -449482
A147: 00404 | B147: SUMNER-FREDERICKSBURG COMM SCHOOL DIST | C147: 556254.75 | D147: 0.0007260207891 | E147: 101782 | F147: 3602388 | G147: -2831949 | H147: 77442 | I147: 66574 | J147: 525841 | K147: 669857 | M147: 77756 | N147: 4213557 | O147: 4291313 | P147: 4291313 | Q147: -353875
A148: 00405 | B148: SOUTH CENTRAL CALHOUN COMMUNITY SCHOOL DIST | C148: 665560.4 | D148: 0.0008686859515 | E148: 121782 | F148: 4310267 | G148: -3388435 | H148: 92659 | I148: 79656 | J148: 629170 | K148: 801485 | M148: 93035 | N148: 5041533 | O148: 5134568 | P148: 5134568 | Q148: -423413
A149: 00406 | B149: STATE - OFFICE OF THE CHIEF INFORMATION OFFICER | C149: 1037133.5 | D149: 0.001353661217 | E149: 189771 | F149: 6716630 | G149: -5280151 | H149: 144390 | I149: 124127 | J149: 980426 | K149: 1248943 | M149: 144976 | N149: 7856151 | O149: 8001127 | P149: 8001127 | Q149: -659798
A150: 00407 | B150: EXIRA-ELK HORN-KIMBALLTON COMM SCHOOL DIST | C150: 265485 | D150: 0.0003465096328 | E150: 48578 | F150: 1719320 | G150: -1351611 | H150: 36961 | I150: 31774 | J150: 250969 | K150: 319704 | M150: 37111 | N150: 2011014 | O150: 2048125 | P150: 2048125 | Q150: -168895
A151: 00408 | B151: NORTH UNION COMMUNITY SCHOOL DIST | C151: 271186.62 | D151: 0.0003539513574 | E151: 49621 | F151: 1756245 | G151: -1380638 | H151: 37755 | I151: 32456 | J151: 256359 | K151: 326570 | M151: 37908 | N151: 2054203 | O151: 2092111 | P151: 2092111 | Q151: -172522
A152: 00409 | B152: DES MOINES CO EMERGENCY COMM CTR | C152: 60996.92 | D152: 7.961286082e-05 | E152: 11161 | F152: 395025 | G152: -310541 | H152: 8492 | I152: 7300 | J152: 57662 | K152: 73454 | M152: 8526 | N152: 462044 | O152: 470570 | P152: 470570 | Q152: -38805
A153: 00410 | B153: DELAWARE TOWNSHIP FIRE DEPT - POLK CO | C153: 20.39 | D153: 2.661292131e-08 | E153: 4 | F153: 132 | G153: -104 | H153: 3 | I153: 2 | J153: 19 | K153: 24 | M153: 3 | N153: 154 | O153: 157 | P153: 157 | Q153: -13
A154: 00411 | B154: BENTON CO SOLID WASTE DISPOSAL COMMISSION | C154: 20313.23 | D154: 2.651272151e-05 | E154: 3717 | F154: 131551 | G154: -103417 | H154: 2828 | I154: 2431 | J154: 19203 | K154: 24462 | M154: 2839 | N154: 153870 | O154: 156709 | P154: 156709 | Q154: -12923
A155: 00412 | B155: SOUTHWEST WEBSTER AMBULANCE SERVICE | C155: 1748.66 | D155: 2.282341882e-06 | E155: 320 | F155: 11325 | G155: -8903 | H155: 243 | I155: 209 | J155: 1653 | K155: 2105 | M155: 244 | N155: 13246 | O155: 13490 | P155: 13490 | Q155: -1112
A156: 00413 | B156: CLAYTON COUNTY DEVELOPMENT GROUP | C156: 4916.63 | D156: 6.41715975e-06 | E156: 900 | F156: 31841 | G156: -25031 | H156: 684 | I156: 588 | J156: 4648 | K156: 5920 | M156: 687 | N156: 37243 | O156: 37930 | P156: 37930 | Q156: -3128
A157: 00414 | B157: GARNER-HAYFIELD-VENTURA COMM SCHOOL DIST | C157: 554628.82 | D157: 0.0007238986338 | E157: 101484 | F157: 3591858 | G157: -2823671 | H157: 77215 | I157: 66379 | J157: 524304 | K157: 667898 | M157: 77529 | N157: 4201241 | O157: 4278770 | P157: 4278770 | Q157: -352841
A158: 00415 | B158: DUBUQUE COUNTY LIBRARY DISTRICT | C158: 47062.19 | D158: 6.142532413e-05 | E158: 8611 | F158: 304782 | G158: -239598 | H158: 6552 | I158: 5633 | J158: 44489 | K158: 56674 | M158: 6579 | N158: 356490 | O158: 363069 | P158: 363069 | Q158: -29940
A159: 00416 | B159: AHSTW COMM SCHOOL DIST | C159: 494262.36 | D159: 0.000645108646 | E159: 90438 | F159: 3200916 | G159: -2516339 | H159: 68811 | I159: 59154 | J159: 467238 | K159: 595203 | M159: 69090 | N159: 3743973 | O159: 3813063 | P159: 3813063 | Q159: -314437
A160: 00417 | B160: MUNICIPAL HOUSING AGENCY OF COUNCIL BLUFFS | C160: 84847.98 | D160: 0.0001107431395 | E160: 15525 | F160: 549488 | G160: -431970 | H160: 11813 | I160: 10155 | J160: 80209 | K160: 102177 | M160: 11860 | N160: 642712 | O160: 654572 | P160: 654572 | Q160: -53978
A161: 00418 | B161: PRAIRIE SOLID WASTE AGENCY | C161: 6528.95 | D161: 8.521551377e-06 | E161: 1195 | F161: 42282 | G161: -33240 | H161: 909 | I161: 781 | J161: 6172 | K161: 7862 | M161: 913 | N161: 49456 | O161: 50369 | P161: 50369 | Q161: -4154
A162: 00419 | B162: OABCIG COMMUNITY SCHOOL DISTRICT | C162: 702078.63 | D162: 0.0009163493542 | E162: 128464 | F162: 4546765 | G162: -3574353 | H162: 97743 | I162: 84026 | J162: 663691 | K162: 845460 | M162: 98140 | N162: 5318154 | O162: 5416294 | P162: 5416294 | Q162: -446645
A163: 00420 | B163: STATE - BOARD OF EDUCATIONAL EXAMINERS | C163: 97702.79 | D163: 0.0001275211703 | E163: 17877 | F163: 632738 | G163: -497415 | H163: 13602 | I163: 11693 | J163: 92361 | K163: 117656 | M163: 13657 | N163: 740086 | O163: 753743 | P163: 753743 | Q163: -62156
A164: 00421 | B164: ALTA-AURELIA COMMUNITY SCHOOL DISTRICT | C164: 550237.61 | D164: 0.0007181672495 | E164: 100681 | F164: 3563420 | G164: -2801315 | H164: 76604 | I164: 65854 | J164: 520152 | K164: 662610 | M164: 76915 | N164: 4167978 | O164: 4244893 | P164: 4244893 | Q164: -350047
A165: 00422 | B165: NORTH FAYETTE VALLEY COMMUNITY SCHOOL DIST | C165: 890629.2 | D165: 0.001162444572 | E165: 162964 | F165: 5767846 | G165: -4534283 | H165: 123993 | I165: 106593 | J165: 841933 | K165: 1072519 | M165: 124496 | N165: 6746400 | O165: 6870896 | P165: 6870896 | Q165: -566596
A166: 00423 | B166: VAN BUREN COUNTY COMMUNITY SCHOOL DISTRICT | C166: 597004.23 | D166: 0.0007792067972 | E166: 109238 | F166: 3866288 | G166: -3039408 | H166: 83115 | I166: 71451 | J166: 564362 | K166: 718928 | M166: 83452 | N166: 4522229 | O166: 4605681 | P166: 4605681 | Q166: -379799
A167: 00424 | B167: MANNING MUNICIPAL UTILITIES | C167: 48190.43 | D167: 6.289789708e-05 | E167: 8818 | F167: 312088 | G167: -245342 | H167: 6709 | I167: 5768 | J167: 45556 | K167: 58033 | M167: 6736 | N167: 365036 | O167: 371772 | P167: 371772 | Q167: -30658
A168: 00425 | B168: COUNTY SOCIAL SERVICES | C168: 227257.85 | D168: 0.0002966157567 | E168: 41583 | F168: 1471755 | G168: -1156993 | H168: 31639 | I168: 27199 | J168: 214832 | K168: 273670 | M168: 31767 | N168: 1721449 | O168: 1753216 | P168: 1753216 | Q168: -144576
A169: 01201 | B169: ADAIR COUNTY | C169: 213125.81 | D169: 0.000278170692 | E169: 38997 | F169: 1380234 | G169: -1085045 | H169: 29671 | I169: 25507 | J169: 201473 | K169: 256651 | M169: 29792 | N169: 1614400 | O169: 1644192 | P169: 1644192 | Q169: -135585
A170: 01203 | B170: ADAIR COUNTY AGRI EXT DIST | C170: 9234.33 | D170: 1.20525992e-05 | E170: 1690 | F170: 59803 | G170: -47013 | H170: 1286 | I170: 1105 | J170: 8729 | K170: 11120 | M170: 1291 | N170: 69949 | O170: 71240 | P170: 71240 | Q170: -5875
A171: 01204 | B171: ADAIR COUNTY HEALTH SYSTEM | C171: 431004.56 | D171: 0.0005625448965 | E171: 78864 | F171: 2791249 | G171: -2194287 | H171: 60004 | I171: 51584 | J171: 407439 | K171: 519027 | M171: 60248 | N171: 3264803 | O171: 3325051 | P171: 3325051 | Q171: -274194
A172: 01205 | B172: ADAIR CO ASSESSOR | C172: 15720.02 | D172: 2.051768785e-05 | E172: 2876 | F172: 101805 | G172: -80032 | H172: 2189 | I172: 1881 | J172: 14861 | K172: 18931 | M172: 2197 | N172: 119077 | O172: 121274 | P172: 121274 | Q172: -10001
A173: 01207 | B173: ADAIR CO SANITARY LANDFILL | C173: 11289.34 | D173: 1.47347875e-05 | E173: 2066 | F173: 73111 | G173: -57475 | H173: 1572 | I173: 1351 | J173: 10672 | K173: 13595 | M173: 1578 | N173: 85515 | O173: 87093 | P173: 87093 | Q173: -7182
A174: 01301 | B174: CITY OF FONTANELLE | C174: 26767.44 | D174: 3.493672263e-05 | E174: 4898 | F174: 173350 | G174: -136276 | H174: 3727 | I174: 3204 | J174: 25304 | K174: 32235 | M174: 3742 | N174: 202760 | O174: 206502 | P174: 206502 | Q174: -17029
A175: 01302 | B175: CITY OF GREENFIELD | C175: 96466.89 | D175: 0.0001259080801 | E175: 17651 | F175: 624734 | G175: -491123 | H175: 13430 | I175: 11545 | J175: 91192 | K175: 116167 | M175: 13485 | N175: 730724 | O175: 744209 | P175: 744209 | Q175: -61370
A176: 01303 | B176: CITY OF CASEY | C176: 12661.44 | D176: 1.652564524e-05 | E176: 2317 | F176: 81997 | G176: -64461 | H176: 1763 | I176: 1515 | J176: 11969 | K176: 15247 | M176: 1770 | N176: 95909 | O176: 97679 | P176: 97679 | Q176: -8055
A177: 01306 | B177: CITY OF ADAIR | C177: 15713.25 | D177: 2.050885168e-05 | E177: 2875 | F177: 101761 | G177: -79998 | H177: 2188 | I177: 1881 | J177: 14854 | K177: 18923 | M177: 2196 | N177: 119026 | O177: 121222 | P177: 121222 | Q177: -9996
A178: 01308 | B178: CITY OF ORIENT | C178: 9960.87 | D178: 1.30008754e-05 | E178: 1823 | F178: 64508 | G178: -50712 | H178: 1387 | I178: 1192 | J178: 9416 | K178: 11995 | M178: 1392 | N178: 75452 | O178: 76844 | P178: 76844 | Q178: -6337
A179: 01309 | B179: CITY OF BRIDGEWATER | C179: 632.8 | D179: 8.259272489e-07 | E179: 116 | F179: 4098 | G179: -3222 | H179: 88 | I179: 76 | J179: 598 | K179: 762 | M179: 88 | N179: 4793 | O179: 4881 | P179: 4881 | Q179: -403
A180: 01401 | B180: GREENFIELD TOWNSHIP - ADAIR COUNTY | C180: 2984.6 | D180: 3.895484303e-06 | E180: 546 | F180: 19329 | G180: -15195 | H180: 416 | I180: 357 | J180: 2821 | K180: 3594 | M180: 417 | N180: 22608 | O180: 23025 | P180: 23025 | Q180: -1899
A181: 01403 | B181: SUMMERSET TOWNSHIP - ADAIR COUNTY | C181: 991.18 | D181: 1.29368295e-06 | E181: 181 | F181: 6419 | G181: -5046 | H181: 138 | I181: 119 | J181: 937 | K181: 1194 | M181: 139 | N181: 7508 | O181: 7647 | P181: 7647 | Q181: -631
A182: 01528 | B182: ADAIR CASEY COMMUNITY SCHOOL DISTRICT | C182: 196369.74 | D182: 0.0002563007571 | E182: 35931 | F182: 1271719 | G182: -999738 | H182: 27339 | I182: 23502 | J182: 185633 | K182: 236474 | M182: 27450 | N182: 1487475 | O182: 1514925 | P182: 1514925 | Q182: -124925
A183: 01530 | B183: ORIENT MACKSBURG COMMUNITY SCHOOL DIST | C183: 126785.65 | D183: 0.000165479967 | E183: 23199 | F183: 821083 | G183: -645478 | H183: 17651 | I183: 15174 | J183: 119853 | K183: 152678 | M183: 17723 | N183: 960385 | O183: 978108 | P183: 978108 | Q183: -80658
A184: 02201 | B184: ADAMS COUNTY | C184: 169606.56 | D184: 0.0002213695946 | E184: 31034 | F184: 1098397 | G184: -863484 | H184: 23613 | I184: 20299 | J184: 160333 | K184: 204245 | M184: 23708 | N184: 1284748 | O184: 1308456 | P184: 1308456 | Q184: -107899
A185: 02203 | B185: ADAMS CO AGR EXT DIST | C185: 5089.79 | D185: 6.643167276e-06 | E185: 931 | F185: 32962 | G185: -25913 | H185: 709 | I185: 609 | J185: 4811 | K185: 6129 | M185: 711 | N185: 38554 | O185: 39265 | P185: 39265 | Q185: -3238
A186: 02301 | B186: CITY OF CORNING | C186: 33331.7 | D186: 4.350436043e-05 | E186: 6099 | F186: 215861 | G186: -169695 | H186: 4640 | I186: 3989 | J186: 31509 | K186: 40138 | M186: 4659 | N186: 252483 | O186: 257142 | P186: 257142 | Q186: -21205
A187: 02303 | B187: CITY OF PRESCOTT | C187: 2759.81 | D187: 3.602089571e-06 | E187: 505 | F187: 17873 | G187: -14050 | H187: 384 | I187: 330 | J187: 2609 | K187: 3323 | M187: 386 | N187: 20905 | O187: 21291 | P187: 21291 | Q187: -1756
A188: 02306 | B188: CORNING HOUSING COMM | C188: 8595.12 | D188: 1.121830565e-05 | E188: 1573 | F188: 55663 | G188: -43759 | H188: 1197 | I188: 1029 | J188: 8125 | K188: 10351 | M188: 1201 | N188: 65107 | O188: 66308 | P188: 66308 | Q188: -5468
A189: 02546 | B189: CORNING COMMUNITY SCHOOL DISTRICT | C189: 337738.32 | D189: 0.000440814288 | E189: 61798 | F189: 2187243 | G189: -1719460 | H189: 47020 | I189: 40421 | J189: 319272 | K189: 406713 | M189: 47211 | N189: 2558324 | O189: 2605535 | P189: 2605535 | Q189: -214861
A190: 02701 | B190: CORNING MUNICIPAL UTILITIES | C190: 47225.21 | D190: 6.163809699e-05 | E190: 8641 | F190: 305837 | G190: -240428 | H190: 6575 | I190: 5652 | J190: 44643 | K190: 56870 | M190: 6601 | N190: 357725 | O190: 364326 | P190: 364326 | Q190: -30043
A191: 03201 | B191: ALLAMAKEE COUNTY | C191: 328651.74 | D191: 0.0004289545314 | E191: 60136 | F191: 2128397 | G191: -1673199 | H191: 45755 | I191: 39334 | J191: 310682 | K191: 395771 | M191: 45941 | N191: 2489494 | O191: 2535435 | P191: 2535435 | Q191: -209080
A192: 03203 | B192: ALLAMAKEE CO AGR EXT DIST | C192: 15546.32 | D192: 2.029097552e-05 | E192: 2845 | F192: 100680 | G192: -79148 | H192: 2164 | I192: 1861 | J192: 14696 | K192: 18721 | M192: 2173 | N192: 117761 | O192: 119934 | P192: 119934 | Q192: -9890
A193: 03206 | B193: ALLAMAKEE CO SOIL & WATER CONS DIST | C193: 4765.29 | D193: 6.219631574e-06 | E193: 872 | F193: 30861 | G193: -24261 | H193: 663 | I193: 570 | J193: 4505 | K193: 5738 | M193: 666 | N193: 36096 | O193: 36762 | P193: 36762 | Q193: -3032
A194: 03301 | B194: CITY OF HARPERS FERRY | C194: 10777.7 | D194: 1.406699765e-05 | E194: 1972 | F194: 69798 | G194: -54870 | H194: 1500 | I194: 1290 | J194: 10188 | K194: 12978 | M194: 1507 | N194: 81640 | O194: 83147 | P194: 83147 | Q194: -6857
A195: 03302 | B195: CITY OF WAUKON | C195: 94975.59 | D195: 0.0001239616431 | E195: 17378 | F195: 615076 | G195: -483530 | H195: 13222 | I195: 11367 | J195: 89783 | K195: 114372 | M195: 13276 | N195: 719428 | O195: 732704 | P195: 732704 | Q195: -60421
A196: 03303 | B196: CITY OF NEW ALBIN | C196: 10949.9 | D196: 1.429175218e-05 | E196: 2004 | F196: 70913 | G196: -55747 | H196: 1524 | I196: 1311 | J196: 10351 | K196: 13186 | M196: 1531 | N196: 82944 | O196: 84475 | P196: 84475 | Q196: -6966
A197: 03304 | B197: CITY OF LANSING | C197: 18034.77 | D197: 2.353888744e-05 | E197: 3300 | F197: 116796 | G197: -91817 | H197: 2511 | I197: 2158 | J197: 17049 | K197: 21718 | M197: 2521 | N197: 136611 | O197: 139132 | P197: 139132 | Q197: -11473
A198: 03306 | B198: CITY OF POSTVILLE | C198: 32987.49 | D198: 4.305509934e-05 | E198: 6036 | F198: 213632 | G198: -167943 | H198: 4593 | I198: 3948 | J198: 31184 | K198: 39725 | M198: 4611 | N198: 249876 | O198: 254487 | P198: 254487 | Q198: -20986
A199: 03310 | B199: CITY OF WATERVILLE | C199: 2643.7 | D199: 3.450543407e-06 | E199: 484 | F199: 17121 | G199: -13459 | H199: 368 | I199: 316 | J199: 2499 | K199: 3183 | M199: 370 | N199: 20026 | O199: 20396 | P199: 20396 | Q199: -1682
A200: 03312 | B200: VETERAN'S MEMORIAL HOSPITAL | C200: 871968.39 | D200: 0.00113808858 | E200: 159550 | F200: 5646996 | G200: -4439279 | H200: 121395 | I200: 104359 | J200: 824292 | K200: 1050046 | M200: 121888 | N200: 6605047 | O200: 6726935 | P200: 6726935 | Q200: -554724
A201: 03566 | B201: POSTVILLE COMMUNITY SCHOOL DISTRICT | C201: 576142.25 | D201: 0.00075197785 | E201: 105421 | F201: 3731182 | G201: -2933198 | H201: 80210 | I201: 68954 | J201: 544641 | K201: 693805 | M201: 80536 | N201: 4364203 | O201: 4444739 | P201: 4444739 | Q201: -366527
A202: 03567 | B202: ALLAMAKEE COMMUNITY SCHOOL DISTRICT | C202: 765445.4 | D202: 0.0009990553309 | E202: 140059 | F202: 4957137 | G202: -3896959 | H202: 106565 | I202: 91610 | J202: 723593 | K202: 921768 | M202: 106998 | N202: 5798149 | O202: 5905147 | P202: 5905147 | Q202: -486957
A203: 03568 | B203: EASTERN ALLAMAKEE COMMUNITY SCHOOL DIST | C203: 228966.72 | D203: 0.0002988461649 | E203: 41896 | F203: 1482822 | G203: -1165693 | H203: 31877 | I203: 27403 | J203: 216448 | K203: 275728 | M203: 32006 | N203: 1734393 | O203: 1766399 | P203: 1766399 | Q203: -145663
A204: 03601 | B204: UPPER EXPLORERLAND REGIONAL PLANNING COM | C204: 71289.84 | D204: =+C204/$C$10 -> 9.304712614e-05 | E204: =ROUND(D204*$E$10,0) -> 13044 | F204: =+ROUND(D204*$F$10,0) -> 461684 | G204: =+ROUND(D204*$G$10,0) -> -362944 | H204: =ROUND(D204*$H$10,0) -> 9925 | I204: =ROUND(D204*$I$10,0) -> 8532 | J204: =ROUND(D204*$J$10,0) -> 67392 | K204: =ROUND(SUM(H204:J204),0) -> 85849 | M204: =ROUND(D204*$M$10,0) -> 9965 | N204: =ROUND(D204*$N$10,0) -> 540011 | O204: =ROUND(SUM(L204:N204),0) -> 549976 | P204: =ROUND(SUM(M204:N204),0) -> 549976 | Q204: =ROUND(D204*$Q$10,0) -> -45353
... 1822 more rows
